bitfinex-derivatives/quotes_SOLF0:USTF0_20230904
["timestamp","ask_amount","ask_price","bid_price","bid_amount"]
[1693856607776,35.7036,19.429,19.419,0.45454546]
[1693856644905,35.7036,19.429,19.418,276.95776177]
[1693856678637,20.2536,19.429,19.418,276.95776177]
[1693856681436,15.45,19.433,19.418,276.95776177]
[1693856681637,36.0267,19.436,19.418,294.47356177]
[1693856681844,20.5767,19.436,19.419,579.62067794]
[1693856682137,20.5767,19.436,19.42,579.61935794]
[1693856682341,20.5767,19.436,19.421,553.87270794]
[1693856682342,15.45,19.436,19.421,553.87270794]
[1693856682537,15.45,19.436,19.422,276.95776177]
[1693856682745,36.0267,19.436,19.423,276.95776177]
[1693856682942,36.0267,19.436,19.424,276.95776177]
[1693856683143,36.0267,19.436,19.425,276.95776177]
[1693856683343,36.0267,19.436,19.426,276.95776177]
[1693856683538,36.0267,19.436,19.421,276.83196715]
[1693856683743,36.0267,19.436,19.422,276.83196715]
[1693856683942,36.0267,19.436,19.423,276.83196715]
[1693856684142,36.0267,19.436,19.424,276.83196715]
[1693856684446,15.45,19.436,19.425,276.83196715]
[1693856684643,35.522,19.436,19.426,276.83196715]
[1693856684839,35.522,19.436,19.427,276.83196715]
[1693856685039,35.522,19.436,19.428,276.83196715]
[1693856685240,35.522,19.436,19.429,276.83196715]
[1693856685546,35.522,19.436,19.43,276.83196715]
[1693856685744,35.522,19.436,19.431,276.83196715]
[1693856685937,35.522,19.436,19.432,276.83196715]
[1693856686137,35.522,19.436,19.42,25.74665]
[1693856686337,35.522,19.436,19.421,276.83409084]
[1693856695241,15.45,19.436,19.421,276.83409084]
[1693856696347,15.45,19.436,19.421,276.89409084]
[1693856696854,15.45,19.436,19.421,302.63941084]
[1693856697052,15.45,19.436,19.422,276.83409084]
[1693856703558,15.45,19.436,19.423,25.74267]
[1693856703762,15.45,19.436,19.424,276.83409084]
[1693856704160,15.44,19.441,19.425,17.512]
[1693856704357,15.44,19.441,19.426,277.2886363]
[1693856704557,15.44,19.441,19.427,0.45454546]
[1693856705260,15.44,19.441,19.427,277.2886363]
[1693856705555,55.82703035,19.441,19.428,276.83409084]
[1693856705761,15.44,19.441,19.429,276.83409084]
[1693856705961,15.44,19.441,19.43,276.83409084]
[1693856706259,15.44,19.441,19.431,276.83409084]
[1693856706557,15.44,19.441,19.432,276.83409084]
[1693856706761,15.44,19.441,19.433,276.83409084]
[1693856706960,15.44,19.441,19.424,0.45454546]
[1693856707256,15.44,19.441,19.424,277.27250875]
[1693856707462,15.44,19.441,19.425,277.27250875]
[1693856707657,15.44,19.441,19.426,277.27250875]
[1693856707961,15.44,19.441,19.427,277.27250875]
[1693856708161,15.44,19.441,19.428,276.81796329]
[1693856708363,15.44,19.441,19.429,276.81796329]
[1693856724677,15.44,19.441,19.428,47.74067649]
[1693856725071,15.44,19.441,19.429,276.78249377]
[1693856760400,1.89263361,19.44,19.43,276.78249377]
[1693856760601,1.89263361,19.44,19.431,276.78249377]
[1693856760799,1.89263361,19.44,19.432,276.78249377]
[1693856760999,1.89263361,19.44,19.425,17.5024]
[1693856761195,1.89263361,19.44,19.426,276.86618761]
[1693856824156,50.50097938,19.441,19.426,276.86618761]
[1693856828759,1.89228395,19.44,19.426,276.86618761]
[1693856830157,1.89228395,19.44,19.425,17.5024]
[1693856830363,1.89228395,19.44,19.426,276.86981176]
[1693856830559,1.89228395,19.44,19.427,276.86981176]
[1693856830758,1.89228395,19.44,19.428,276.86981176]
[1693856830962,1.89228395,19.44,19.429,276.86981176]
[1693856831261,1.89228395,19.44,19.43,276.86981176]
[1693856831457,1.89228395,19.44,19.431,276.86981176]
[1693856831765,1.89228395,19.44,19.432,276.86981176]
[1693856831964,1.89228395,19.44,19.433,276.86981176]
[1693856832165,1.89228395,19.44,19.424,0.45454546]
[1693856832462,1.89228395,19.44,19.421,277.32417604]
[1693856832663,1.89228395,19.44,19.422,0.45454546]
[1693856832863,1.89228395,19.44,19.422,17.96554546]
[1693856833062,1.89228395,19.44,19.423,277.32417604]
[1693856833258,1.89228395,19.44,19.424,277.32417604]
[1693856833464,1.89228395,19.44,19.422,17.511]
[1693856833465,1.89228395,19.44,19.425,276.86963058]
[1693856833654,1.89228395,19.44,19.426,276.86963058]
[1693856833859,1.89228395,19.44,19.427,276.86963058]
[1693856834065,1.89228395,19.44,19.428,276.86963058]
[1693856834263,1.89228395,19.44,19.429,276.86963058]
[1693856834561,1.89228395,19.44,19.43,276.86963058]
[1693856834764,1.89228395,19.44,19.431,276.86963058]
[1693856834968,1.89228395,19.44,19.432,276.86963058]
[1693856835266,1.89228395,19.44,19.433,276.86963058]
[1693856835465,1.89228395,19.44,19.421,0.45454546]
[1693856835661,1.89228395,19.44,19.421,277.32360842]
[1693856835964,1.89228395,19.44,19.422,0.45454546]
[1693856836164,1.89228395,19.44,19.422,17.96554546]
[1693856836364,1.89228395,19.44,19.423,277.32360842]
[1693856836564,1.89228395,19.44,19.424,277.32360842]
[1693856836863,1.89228395,19.44,19.425,276.86906296]
[1693856837063,1.89228395,19.44,19.426,276.86906296]
[1693856837265,1.89228395,19.44,19.423,0.45454546]
[1693856837266,1.89228395,19.44,19.427,276.86906296]
[1693856837465,1.89228395,19.44,19.428,276.86906296]
[1693856837659,1.89228395,19.44,19.429,276.86906296]
[1693856837861,1.89228395,19.44,19.43,276.86906296]
[1693856838061,1.89228395,19.44,19.431,276.86906296]
[1693856838262,1.89228395,19.44,19.432,276.86906296]
[1693856838465,1.89228395,19.44,19.433,276.86906296]
[1693856838665,1.89228395,19.44,19.421,0.45454546]
[1693856839263,1.89228395,19.44,19.421,277.32082247]
[1693856839464,1.89228395,19.44,19.422,277.32082247]
[1693856839659,1.89228395,19.44,19.423,277.32082247]
[1693856839863,1.89228395,19.44,19.424,277.32082247]
[1693856840068,1.89228395,19.44,19.425,276.86627701]
[1693856840367,1.89228395,19.44,19.426,276.86627701]
[1693856840568,1.89228395,19.44,19.427,276.86627701]
[1693856840768,1.89228395,19.44,19.428,276.86627701]
[1693856840969,1.89228395,19.44,19.429,276.86627701]
[1693856841268,1.89228395,19.44,19.43,276.86627701]
[1693856841569,1.89228395,19.44,19.431,276.86627701]
[1693856841771,1.89228395,19.44,19.432,276.86627701]
[1693856842070,1.89228395,19.44,19.421,0.45454546]
[1693856842363,1.89228395,19.44,19.421,277.3209683]
[1693856842568,1.89228395,19.44,19.422,0.45454546]
[1693856842870,1.89228395,19.44,19.422,17.97584546]
[1693856843165,1.89228395,19.44,19.423,277.3209683]
[1693856843370,1.89228395,19.44,19.424,277.3209683]
[1693856843570,1.89228395,19.44,19.425,276.86642284]
[1693856843771,1.89228395,19.44,19.426,276.86642284]
[1693856843963,1.89228395,19.44,19.427,276.86642284]
[1693856844170,1.89228395,19.44,19.428,276.86642284]
[1693856844367,1.89228395,19.44,19.429,276.86642284]
[1693856844568,1.89228395,19.44,19.43,276.86642284]
[1693856844768,1.89228395,19.44,19.431,276.86642284]
[1693856844967,1.89228395,19.44,19.421,0.45454546]
[1693856844968,1.89228395,19.44,19.432,276.86642284]
[1693856845163,1.89228395,19.44,19.421,0.45454546]
[1693856845369,1.89228395,19.44,19.421,277.3209495]
[1693856845672,1.89228395,19.44,19.422,277.3209495]
[1693856845866,1.89228395,19.44,19.423,277.3209495]
[1693856846068,1.89228395,19.44,19.424,277.3209495]
[1693856846267,1.89228395,19.44,19.425,276.86640404]
[1693856846468,1.89228395,19.44,19.426,276.86640404]
[1693856846768,1.89228395,19.44,19.427,276.86640404]
[1693856846970,1.89228395,19.44,19.428,276.86640404]
[1693856847161,1.89228395,19.44,19.429,276.86640404]
[1693856847464,1.89228395,19.44,19.43,276.86640404]
[1693856847663,1.89228395,19.44,19.431,276.86640404]
[1693856847861,1.89228395,19.44,19.432,276.86640404]
[1693856848071,1.89228395,19.44,19.433,276.86640404]
[1693856848272,1.89228395,19.44,19.421,0.45454546]
[1693856848775,1.89228395,19.44,19.421,277.32057771]
[1693856848972,1.89228395,19.44,19.422,277.32057771]
[1693856849173,1.89228395,19.44,19.423,277.32057771]
[1693856849371,1.89228395,19.44,19.424,277.32057771]
[1693856849570,1.89228395,19.44,19.425,276.86603225]
[1693856849774,1.89228395,19.44,19.426,276.86603225]
[1693856850069,1.89228395,19.44,19.427,276.86603225]
[1693856850275,1.89228395,19.44,19.428,276.86603225]
[1693856850466,1.89228395,19.44,19.429,276.86603225]
[1693856850671,1.89228395,19.44,19.43,276.86603225]
[1693856850872,1.89228395,19.44,19.431,276.86603225]
[1693856851073,1.89228395,19.44,19.432,276.86603225]
[1693856851375,1.89228395,19.44,19.433,276.86603225]
[1693856851576,1.89228395,19.44,19.421,0.45454546]
[1693856851778,1.89228395,19.44,19.421,277.32083566]
[1693856851978,1.89228395,19.44,19.422,0.45454546]
[1693856852276,1.89228395,19.44,19.422,17.97544546]
[1693856852479,1.89228395,19.44,19.423,277.32083566]
[1693856852777,1.89228395,19.44,19.424,277.32083566]
[1693856852977,1.89228395,19.44,19.425,276.8662902]
[1693856853177,1.89228395,19.44,19.426,276.8662902]
[1693856853376,1.89228395,19.44,19.427,276.8662902]
[1693856853573,1.89228395,19.44,19.428,276.8662902]
[1693856853777,1.89228395,19.44,19.429,276.8662902]
[1693856853979,1.89228395,19.44,19.43,276.8662902]
[1693856854276,1.89228395,19.44,19.431,276.8662902]
[1693856854476,1.89228395,19.44,19.432,276.8662902]
[1693856854675,1.89228395,19.44,19.433,276.8662902]
[1693856854876,1.89228395,19.44,19.421,0.45454546]
[1693856855077,1.89228395,19.44,19.421,277.32168339]
[1693856855278,1.89228395,19.44,19.422,277.32168339]
[1693856855579,1.89228395,19.44,19.423,277.32168339]
[1693856855877,1.89228395,19.44,19.424,277.32168339]
[1693856856077,1.89228395,19.44,19.425,276.86713793]
[1693856856276,1.89228395,19.44,19.426,276.86713793]
[1693856856471,1.89228395,19.44,19.427,276.86713793]
[1693856856673,1.89228395,19.44,19.428,276.86713793]
[1693856856869,1.89228395,19.44,19.429,276.86713793]
[1693856857179,1.89228395,19.44,19.43,276.86713793]
[1693856857380,1.89228395,19.44,19.431,276.86713793]
[1693856857579,1.89228395,19.44,19.432,276.86713793]
[1693856857880,1.89228395,19.44,19.433,276.86713793]
[1693856858081,1.89228395,19.44,19.421,0.45454546]
[1693856858580,1.89228395,19.44,19.421,277.32157802]
[1693856858776,1.89228395,19.44,19.422,277.32157802]
[1693856858975,1.89228395,19.44,19.423,277.32157802]
[1693856859176,1.89228395,19.44,19.42,44.84891511]
[1693856859177,1.89228395,19.44,19.424,277.32157802]
[1693856859376,1.89228395,19.44,19.425,276.86703256]
[1693856859578,1.89228395,19.44,19.426,276.86703256]
[1693856859778,1.89228395,19.44,19.427,276.86703256]
[1693856859978,1.89228395,19.44,19.421,0.45454546]
[1693856859979,1.89228395,19.44,19.428,276.86703256]
[1693856860180,1.89228395,19.44,19.429,276.86703256]
[1693856860379,1.89228395,19.44,19.43,276.86703256]
[1693856860579,1.89228395,19.44,19.431,276.86703256]
[1693856860778,1.89228395,19.44,19.432,276.86703256]
[1693856860978,1.89228395,19.44,19.433,276.86703256]
[1693856861283,1.89228395,19.44,19.421,0.45454546]
[1693856861782,1.89228395,19.44,19.421,277.32229836]
[1693856861973,1.89228395,19.44,19.422,0.45454546]
[1693856862178,1.89228395,19.44,19.422,17.97544546]
[1693856862378,1.89228395,19.44,19.42,44.84891511]
[1693856862379,1.89228395,19.44,19.423,277.32229836]
[1693856862579,1.89228395,19.44,19.42,44.84891511]
[1693856862580,1.89228395,19.44,19.424,277.32229836]
[1693856862778,1.89228395,19.44,19.425,276.8677529]
[1693856862984,1.89228395,19.44,19.426,276.8677529]
[1693856863283,1.89228395,19.44,19.427,276.8677529]
[1693856863486,1.89228395,19.44,19.428,276.8677529]
[1693856863784,1.89228395,19.44,19.429,276.8677529]
[1693856863983,1.89228395,19.44,19.43,276.8677529]
[1693856864184,1.89228395,19.44,19.431,276.8677529]
[1693856864385,1.89228395,19.44,19.432,276.8677529]
[1693856864583,1.89228395,19.44,19.433,276.8677529]
[1693856864782,1.89228395,19.44,19.421,0.45454546]
[1693856865881,1.89228395,19.44,19.421,277.32029256]
[1693856866078,1.89228395,19.44,19.422,554.18603966]
[1693856866276,1.89228395,19.44,19.423,277.32029256]
[1693856866481,1.89228395,19.44,19.424,277.32029256]
[1693856866683,1.89228395,19.44,19.425,276.8657471]
[1693856866882,1.89228395,19.44,19.426,276.8657471]
[1693856867083,1.89228395,19.44,19.427,276.8657471]
[1693856867284,1.89228395,19.44,19.428,276.8657471]
[1693856867479,1.89228395,19.44,19.429,276.8657471]
[1693856867685,1.89228395,19.44,19.43,276.8657471]
[1693856867989,1.89228395,19.44,19.431,276.8657471]
[1693856868188,1.89228395,19.44,19.432,276.8657471]
[1693856868487,1.89228395,19.44,19.433,276.8657471]
[1693856868687,1.89228395,19.44,19.421,0.45454546]
[1693856869384,1.89228395,19.44,19.421,277.31985023]
[1693856869584,1.89228395,19.44,19.422,554.185155]
[1693856869788,1.89228395,19.44,19.423,277.31985023]
[1693856869987,1.89228395,19.44,19.424,277.31985023]
[1693856870189,1.89228395,19.44,19.425,276.86530477]
[1693856870486,1.89228395,19.44,19.426,276.86530477]
[1693856870688,1.89228395,19.44,19.427,276.86530477]
[1693856870888,1.89228395,19.44,19.428,276.86530477]
[1693856871183,1.89228395,19.44,19.429,276.86530477]
[1693856871385,1.89228395,19.44,19.43,276.86530477]
[1693856871593,35.06097938,19.441,19.431,277.31985023]
[1693856871891,35.06097938,19.441,19.432,277.31985023]
[1693856872091,35.06097938,19.441,19.433,277.31985023]
[1693856872292,35.06097938,19.441,19.434,277.31985023]
[1693856872483,35.06097938,19.441,19.435,276.86530477]
[1693856872687,35.06097938,19.441,19.436,276.86530477]
[1693856872887,35.06097938,19.441,19.437,276.86530477]
[1693856873087,35.06097938,19.441,19.438,276.86530477]
[1693856873391,35.06097938,19.441,19.439,276.86530477]
[1693856873593,35.06097938,19.441,19.432,0.45454546]
[1693856874586,35.06097938,19.441,19.432,277.232355]
[1693856874788,35.06097938,19.441,19.433,277.232355]
[1693856874990,35.06097938,19.441,19.434,277.232355]
[1693856875191,35.06097938,19.441,19.435,276.77780954]
[1693856875506,35.06097938,19.441,19.436,276.77780954]
[1693856875687,35.06097938,19.441,19.437,276.77780954]
[1693856875887,35.06097938,19.441,19.438,276.77780954]
[1693856876089,35.06097938,19.441,19.439,276.77780954]
[1693856876288,35.06097938,19.441,19.432,0.45454546]
[1693856876885,35.06097938,19.441,19.432,277.2322797]
[1693856877191,35.06097938,19.441,19.433,0.45454546]
[1693856881891,41.09521357,19.442,19.433,0.45454546]
[1693856882088,20.8782,19.443,19.433,0.45454546]
[1693856885294,77.75852921,19.443,19.433,0.45454546]
[1693856885495,36.3182,19.443,19.433,0.45454546]
[1693856888397,20.8782,19.443,19.433,0.45454546]
[1693856897300,62.97696542,19.443,19.433,0.45454546]
[1693856897501,20.8782,19.443,19.433,0.45454546]
[1693856909306,20.8782,19.443,19.432,277.2322797]
[1693856909604,40.25514402,19.444,19.432,277.2322797]
[1693856909801,55.90774168,19.448,19.432,277.2322797]
[1693856910000,1.89203026,19.447,19.432,277.2322797]
[1693856910200,15.43,19.446,19.432,277.2322797]
[1693856910507,55.90774168,19.448,19.432,277.2322797]
[1693856910804,15.43,19.446,19.432,277.2322797]
[1693856911007,55.90774168,19.448,19.432,277.2322797]
[1693856911195,15.43,19.446,19.432,277.2322797]
[1693856911395,55.90774168,19.448,19.432,277.2322797]
[1693856911604,15.43,19.446,19.432,277.2322797]
[1693856911807,55.90774168,19.448,19.432,277.2322797]
[1693856912002,15.43,19.446,19.432,277.2322797]
[1693856912301,55.90774168,19.448,19.432,277.2322797]
[1693856912501,15.43,19.446,19.432,277.2322797]
[1693856912805,55.90774168,19.448,19.432,277.2322797]
[1693856913005,15.43,19.446,19.432,277.2322797]
[1693856913303,55.90774168,19.448,19.432,277.2322797]
[1693856913604,15.43,19.446,19.432,277.2322797]
[1693856913804,55.90774168,19.448,19.432,277.2322797]
[1693856914004,15.43,19.446,19.432,277.2322797]
[1693856914204,55.90774168,19.448,19.432,277.2322797]
[1693856914205,20.2012,19.448,19.432,277.2322797]
[1693856914503,15.43,19.446,19.432,277.2322797]
[1693856914803,20.2012,19.448,19.432,277.2322797]
[1693856914998,15.43,19.446,19.432,277.2322797]
[1693856915199,20.2012,19.448,19.432,277.2322797]
[1693856915396,15.43,19.446,19.432,277.2322797]
[1693856915605,20.2012,19.448,19.432,277.2322797]
[1693856915802,15.43,19.446,19.432,277.2322797]
[1693856916002,20.2012,19.448,19.432,277.2322797]
[1693856916304,15.43,19.446,19.432,277.2322797]
[1693856916497,20.2012,19.448,19.432,277.2322797]
[1693856916699,15.43,19.446,19.432,277.2322797]
[1693856916896,20.2012,19.448,19.432,277.2322797]
[1693856917207,15.43,19.446,19.432,277.2322797]
[1693856917407,20.2012,19.448,19.432,277.2322797]
[1693856917606,15.43,19.446,19.432,277.2322797]
[1693856917801,20.2012,19.448,19.432,277.2322797]
[1693856918003,15.43,19.446,19.432,277.2322797]
[1693856918300,20.2012,19.448,19.432,277.2322797]
[1693856918497,15.43,19.446,19.432,277.2322797]
[1693856918707,20.2012,19.448,19.432,277.2322797]
[1693856918907,15.43,19.446,19.432,277.2322797]
[1693856919106,20.2012,19.448,19.432,277.2322797]
[1693856919308,15.43,19.446,19.432,277.2322797]
[1693856919606,20.2012,19.448,19.432,277.2322797]
[1693856919806,15.43,19.446,19.432,277.2322797]
[1693856920107,20.2012,19.448,19.432,277.2322797]
[1693856920509,15.43,19.446,19.432,277.2322797]
[1693856920700,20.2012,19.448,19.432,277.2322797]
[1693856920904,15.43,19.446,19.432,276.77773424]
[1693856921206,20.2012,19.448,19.432,276.77773424]
[1693856921406,15.43,19.446,19.432,276.77773424]
[1693856921608,20.2012,19.448,19.432,276.77773424]
[1693856921909,100.52,19.441,19.434,100.52]
[1693856922108,100.52,19.441,19.435,276.77773424]
[1693856923308,100.52,19.438,19.435,276.77773424]
[1693856923509,100.52,19.438,19.436,276.77773424]
[1693856923705,100.52,19.438,19.437,276.77773424]
[1693856924108,100.52,19.438,19.432,276.77773424]
[1693856930110,100.52,19.442,19.435,100.52]
[1693856930305,100.52,19.442,19.436,276.77773424]
[1693856930607,100.52,19.446,19.438,100.52]
[1693856930807,100.52,19.448,19.441,100.52]
[1693856931001,100.52,19.452,19.444,100.52]
[1693856931308,100.52,19.452,19.445,276.77773424]
[1693856936315,21.6271,19.453,19.445,276.77773424]
[1693856936512,100.52,19.452,19.445,276.77773424]
[1693856937214,100.64520489,19.454,19.448,100.52]
[1693856937416,100.64520489,19.454,19.449,276.77773424]
[1693856941720,0.12520489,19.454,19.45,100.52]
[1693856942522,0.12520489,19.454,19.452,100.52]
[1693856942721,41.72750641,19.456,19.452,100.52]
[1693856942915,20.8457,19.458,19.452,100.52]
[1693856943219,100.52,19.457,19.451,100.52]
[1693856943816,0.12520489,19.454,19.451,100.52]
[1693856947125,0.12520489,19.454,19.453,100.52]
[1693856949526,0.12520489,19.454,19.453,100.58]
[1693856957838,40.53881747,19.458,19.453,100.52]
[1693856958037,15.42,19.461,19.456,100.52]
[1693856966145,141.71691515,19.462,19.456,100.52]
[1693856972651,41.19691515,19.462,19.456,100.52]
[1693856972847,100.52,19.463,19.456,100.52]
[1693856981158,141.06704369,19.463,19.456,100.52]
[1693856983253,40.54704369,19.463,19.458,100.52]
[1693856983456,15.42,19.464,19.458,100.52]
[1693856984762,56.31254497,19.464,19.458,100.52]
[1693856985064,15.42,19.461,19.456,100.52]
[1693856991963,57.23388173,19.461,19.456,100.52]
[1693856993264,142.33388173,19.461,19.454,100.52]
[1693856998463,41.81388173,19.461,19.457,100.52]
[1693856998664,100.52,19.464,19.457,100.52]
[1693857007573,100.52,19.46,19.454,100.52]
[1693857007770,100.52,19.46,19.455,276.51471924]
[1693857017073,15.42,19.459,19.455,276.51471924]
[1693857017673,100.52,19.46,19.455,276.51471924]
[1693857027281,15.42,19.459,19.455,276.51471924]
[1693857028282,100.52,19.457,19.455,276.51471924]
[1693857028482,100.52,19.457,19.456,276.51471924]
[1693857029082,100.52,19.457,19.451,276.51471924]
[1693857033684,0.12520468,19.454,19.451,276.51471924]
[1693857033983,100.52,19.457,19.454,0.14668185]
[1693857037396,100.52,19.455,19.454,0.14668185]
[1693857037994,100.52,19.455,19.454,276.66140109]
[1693857038197,100.52,19.455,19.454,0.14668185]
[1693857044492,100.52,19.455,19.454,276.66140109]
[1693857044694,100.52,19.455,19.448,0.45454546]
[1693857044895,40.68242548,19.457,19.454,276.51605277]
[1693857045090,100.52,19.455,19.448,0.45454546]
[1693857045298,100.52,19.453,19.448,0.45454546]
[1693857046003,100.52,19.453,19.448,276.97077508]
[1693857046198,100.52,19.453,19.449,276.97077508]
[1693857046504,100.52,19.453,19.45,276.51622962]
[1693857046704,100.52,19.453,19.451,276.51622962]
[1693857046899,100.52,19.453,19.452,276.51622962]
[1693857047095,100.52,19.453,19.448,276.97077508]
[1693857047298,100.52,19.453,19.449,276.97077508]
[1693857047497,100.52,19.453,19.45,276.51622962]
[1693857047695,100.52,19.453,19.451,276.51622962]
[1693857047898,100.52,19.453,19.452,276.51622962]
[1693857048098,100.52,19.453,19.448,276.97077508]
[1693857048401,100.52,19.453,19.449,276.97077508]
[1693857048604,100.52,19.453,19.45,276.51622962]
[1693857048804,100.52,19.453,19.451,276.51622962]
[1693857049000,100.52,19.453,19.452,276.51622962]
[1693857049200,100.52,19.453,19.448,276.97077508]
[1693857049501,100.52,19.453,19.449,0.45454546]
[1693857051703,100.52,19.453,19.448,276.97077508]
[1693857051900,57.31437806,19.453,19.448,276.97077508]
[1693857052104,57.31437806,19.453,19.45,0.12522864]
[1693857052304,57.31437806,19.453,19.45,47.65409671]
[1693857052605,57.31437806,19.453,19.451,276.51622962]
[1693857053808,95.06712565,19.467,19.454,43.20529014]
[1693857054011,100.52,19.456,19.455,276.51622962]
[1693857063222,100.52,19.457,19.455,276.51622962]
[1693857070026,100.52,19.457,19.456,276.51622962]
[1693857070323,100.52,19.457,19.451,276.51622962]
[1693857070524,100.52,19.457,19.452,276.51622962]
[1693857070821,100.52,19.457,19.453,276.51622962]
[1693857071026,100.52,19.457,19.454,276.51622962]
[1693857071226,100.52,19.457,19.455,276.51622962]
[1693857071421,100.52,19.457,19.456,276.51622962]
[1693857072028,100.52,19.457,19.451,276.51622962]
[1693857072222,100.52,19.457,19.452,276.51622962]
[1693857072422,100.52,19.457,19.453,276.51622962]
[1693857072624,100.52,19.457,19.454,276.51622962]
[1693857072825,100.52,19.457,19.455,276.51622962]
[1693857073026,100.52,19.457,19.456,276.51622962]
[1693857073724,100.52,19.457,19.451,276.51622962]
[1693857073925,100.52,19.456,19.452,276.51622962]
[1693857074126,100.52,19.456,19.453,276.51622962]
[1693857074326,100.52,19.456,19.454,276.51622962]
[1693857074624,100.52,19.456,19.455,276.51622962]
[1693857074823,100.52,19.456,19.451,276.51622962]
[1693857075224,100.52,19.453,19.451,276.51622962]
[1693857075426,57.31464466,19.453,19.451,276.51622962]
[1693857091834,100.52,19.453,19.451,276.51622962]
[1693857092341,15.42,19.451,19.45,0.12522845]
[1693857092540,100.52,19.451,19.45,0.12522845]
[1693857092735,100.52,19.451,19.446,0.18788026]
[1693857093042,100.52,19.447,19.44,100.52]
[1693857093243,100.52,19.446,19.439,100.52]
[1693857093440,100.52,19.446,19.439,143.71497388]
[1693857095337,100.52,19.443,19.439,43.19497388]
[1693857096934,100.52,19.44,19.439,43.19497388]
[1693857098937,100.52,19.44,19.437,0.3132752]
[1693857100549,100.52,19.438,19.437,0.3132752]
[1693857103647,100.52,19.438,19.433,0.3760055]
[1693857103844,100.52,19.434,19.433,0.3760055]
[1693857107549,100.52,19.434,19.426,48.01842904]
[1693857107737,100.52,19.429,19.426,48.01842904]
[1693857113043,100.52,19.429,19.426,48.07842904]
[1693857113241,100.52,19.43,19.426,48.07842904]
[1693857118852,100.52,19.429,19.426,48.07842904]
[1693857122668,100.52,19.429,19.426,48.01842904]
[1693857132266,100.52,19.428,19.426,48.01842904]
[1693857137474,100.52,19.427,19.419,100.52]
[1693857137675,100.52,19.423,19.421,276.82199886]
[1693857137864,100.52,19.423,19.416,0.45454546]
[1693857142377,100.52,19.423,19.421,0.31353299]
[1693857143177,100.52,19.422,19.421,0.31353299]
[1693857164696,57.26571987,19.422,19.421,0.31353299]
[1693857165701,100.52,19.424,19.421,0.31353299]
[1693857173207,100.52,19.425,19.421,0.31353299]
[1693857181115,100.52,19.425,19.416,277.2813785]
[1693857181116,100.52,19.422,19.416,377.8013785]
[1693857182117,100.58270483,19.422,19.416,377.8013785]
[1693857182916,100.58270483,19.422,19.416,403.5533285]
[1693857183816,100.58270483,19.422,19.417,25.75063]
[1693857193225,100.52,19.421,19.417,25.75063]
[1693857193419,100.52,19.421,19.417,302.57746304]
[1693857193622,100.52,19.421,19.418,276.82683304]
[1693857193816,100.52,19.421,19.419,276.82683304]
[1693857194016,100.52,19.421,19.417,25.75063]
[1693857213238,100.58270483,19.422,19.417,25.75063]
[1693857220445,100.58270483,19.422,19.417,302.59582154]
[1693857220640,100.58270483,19.422,19.418,276.84519154]
[1693857220845,100.58270483,19.422,19.419,276.84519154]
[1693857221046,100.58270483,19.422,19.417,25.75063]
[1693857235156,15.45,19.421,19.417,25.75063]
[1693857235562,15.45,19.421,19.415,318.2672783]
[1693857237659,15.45,19.421,19.415,276.85018253]
[1693857237958,15.45,19.421,19.416,276.85018253]
[1693857238158,15.45,19.421,19.417,276.85018253]
[1693857238358,15.45,19.421,19.418,276.85018253]
[1693857238558,15.45,19.421,19.414,100.52]
[1693857242264,15.45,19.421,19.416,100.52]
[1693857242470,100.52,19.419,19.415,40.05397656]
[1693857243772,100.52,19.419,19.415,316.90741477]
[1693857243971,100.52,19.419,19.416,276.85343821]
[1693857244266,100.52,19.419,19.417,276.85343821]
[1693857244468,100.52,19.419,19.415,40.05397656]
[1693857250468,100.52,19.416,19.415,40.05397656]
[1693857252470,100.52,19.416,19.408,377.47613349]
[1693857252671,15.45,19.414,19.408,377.47613349]
[1693857253165,15.45,19.414,19.408,276.95613349]
[1693857253166,100.52,19.414,19.408,276.95613349]
[1693857253364,100.52,19.414,19.406,100.52]
[1693857254274,100.52,19.411,19.403,600.52]
[1693857256974,100.52,19.411,19.403,100.52]
[1693857258270,100.52,19.411,19.403,600.52]
[1693857263177,100.52,19.41,19.403,500.0]
[1693857269375,15.45,19.414,19.405,146.83961346]
[1693857269582,22.225,19.415,19.409,100.52]
[1693857269784,100.52,19.416,19.409,100.52]
[1693857270386,100.52,19.416,19.409,126.28124]
[1693857272485,100.52,19.415,19.409,25.76124]